fUSD/lending_fUSD_20240103
["ID","MTS","AMOUNT","RATE_DAILY","PERIOD"]
[310046857,1704297131317,-1000.0,0.00035616,2]
[310046858,1704297131327,-1000.0,0.00035616,2]
[310046859,1704297131336,-1000.0,0.00035616,2]
[310046860,1704297131346,-1000.0,0.00035616,2]
[310046861,1704297131355,-1011.0,0.00035616,2]
[310046862,1704297131364,-1000.0,0.00035616,2]
[310046863,1704297131375,-1000.0,0.00035616,2]
[310046864,1704297131384,-1000.0,0.00035616,2]
[310046865,1704297131398,-1000.0,0.00035616,2]
[310046866,1704297131410,-1000.0,0.00035616,2]
[310046867,1704297131420,-1000.0,0.00035616,2]
[310046868,1704297131430,-1000.0,0.00035616,2]
[310046869,1704297131440,-1000.0,0.00035616,2]
[310046870,1704297131450,-1000.0,0.00035616,2]
[310046871,1704297131459,-1000.0,0.00035616,2]
[310046872,1704297131469,-1000.0,0.00035616,2]
[310046873,1704297131479,-1000.0,0.00035616,2]
[310046874,1704297131488,-364.0,0.00035616,2]
[310046875,1704297131498,-1000.0,0.00035616,2]
[310046876,1704297131509,-1000.0,0.00035616,2]
[310046877,1704297131519,-1000.0,0.00035616,2]
[310046878,1704297131530,-1000.0,0.00035616,2]
[310046879,1704297131541,-1000.0,0.00035616,2]
[310046880,1704297131552,-1000.0,0.00035616,2]
[310046881,1704297131562,-150.0,0.00035616,2]
[310046882,1704297131573,-1174.8,0.00035637,2]
[310046883,1704297131584,-937.85,0.00035637,2]
[310046884,1704297131594,-937.85,0.00035637,2]
[310046885,1704297131604,-400.26,0.00035637,2]
[310046886,1704297131615,-400.26,0.00035637,2]
[310046887,1704297131626,-937.85,0.00035637,2]
[310046888,1704297131636,-400.26,0.00035637,2]
[310046889,1704297131647,-399.18,0.00035637,2]
[310046890,1704297131658,-1200.0,0.00035654,15]
[310046891,1704297131669,-222.22222,0.00035698,2]
[310046892,1704297131679,-39822.34,0.000357,7]
[310046893,1704297131690,-1320.0,0.000357,7]
[310046894,1704297131700,-276.3364,0.00035773,2]
[310046895,1704297131710,-222.22222,0.00035798,2]
[310046896,1704297131720,-716.0,0.000358,25]
[310046897,1704297131731,-3342.736259,0.000358,3]
[310046898,1704297131742,-150.8337322,0.00035808,2]
[310046899,1704297131752,-500.0,0.00035888,2]
[310046900,1704297131762,-500.0,0.00035888,2]
[310046901,1704297131773,-500.0,0.00035888,2]
[310046902,1704297131783,-500.0,0.00035888,2]
[310046903,1704297131793,-500.0,0.00035888,2]
[310046904,1704297131803,-500.0,0.00035888,2]
[310046905,1704297131815,-500.0,0.00035888,2]
[310046906,1704297131828,-500.0,0.00035888,2]
[310046907,1704297131838,-500.0,0.00035888,2]
[310046908,1704297131848,-500.0,0.00035888,2]
[310046909,1704297131859,-500.0,0.00035888,2]
[310046910,1704297131872,-250.0,0.00035888,2]
[310046911,1704297131883,-500.0,0.00035888,2]
[310046912,1704297131893,-500.0,0.00035888,2]
[310046913,1704297131903,-500.0,0.00035888,2]
[310046914,1704297131914,-500.0,0.00035888,2]
[310046915,1704297131924,-500.0,0.00035888,2]
[310046916,1704297131934,-277874.44952481,0.00035888,30]
[310046917,1704297131943,-51071.54890776,0.00035888,30]
[310046918,1704297131953,-222.22222,0.00035898,2]
[310046919,1704297131962,-150.0,0.00035899,7]
[310046920,1704297131972,-316.24649537,0.000359,4]
[310046921,1704297131983,-151.0,0.000359,2]
[310046922,1704297131993,-39822.34,0.000359,7]
[310046923,1704297132002,-5073.712357,0.000359,5]
[310046924,1704297132012,-1062.8886802,0.000359,2]
[310046925,1704297132021,-1553.7000594,0.000359,2]
[310046926,1704297132031,-1553.7000594,0.000359,2]
[310046927,1704297132041,-456.122772,0.00035926,2]
[310046928,1704297132051,-467.327823,0.00035926,2]
[310046929,1704297132060,-456.073485,0.00035926,2]
[310046930,1704297132070,-228.036742,0.00035926,2]
[310046931,1704297132080,-153.84,0.00035941,2]
[310046932,1704297132090,-150.0,0.00035958,7]
[310046933,1704297132102,-1041.5584499,0.00035975,2]
[310046934,1704297132111,-1577.1353574,0.00035975,2]
[310046935,1704297132123,-2744.9887191,0.00035975,2]
[310046936,1704297132132,-21861.360484,0.00035975,2]
[310046937,1704297132142,-682.6723929,0.00035975,2]
[310046938,1704297132152,-7363.5879413,0.00035975,2]
[310046939,1704297132161,-89338.0453899,0.00035975,2]
[310046940,1704297132171,-300.0,0.00035987,15]
[310046941,1704297132181,-100000.0,0.00036,6]
[310046942,1704297132191,-300.0,0.00036,2]
[310046943,1704297132202,-330.0,0.00036,3]
[310046944,1704297132212,-330.0,0.00036,3]
[310046945,1704297132222,-330.0,0.00036,3]
[310046946,1704297132232,-330.0,0.00036,3]
[310046947,1704297132242,-330.0,0.00036,3]
[310046948,1704297132251,-330.0,0.00036,3]
[310046949,1704297132261,-330.0,0.00036,3]
[310046950,1704297132271,-600.0,0.00036,37]
[310046951,1704297132281,-760.23017397,0.00036,4]
[310046952,1704297132291,-11985.50099099,0.00036,4]
[310046953,1704297132301,-160.89292261,0.00036,4]
[310046954,1704297132311,-1000.0,0.00036,7]
[310046955,1704297132321,-2000.0,0.00036,2]
[310046956,1704297132330,-998.0,0.00036,8]
[310046957,1704297132340,-20000.0,0.00036,8]
[310046958,1704297132351,-150.0,0.00036,2]
[310046959,1704297132361,-110461.34,0.00036,7]
[310046960,1704297132373,-304.6434966,0.00036,3]
[310046961,1704297132382,-64160.23,0.00036,7]
[310046962,1704297132392,-330.0,0.00036,3]
[310046963,1704297132402,-330.0,0.00036,3]
[310046964,1704297132413,-330.0,0.00036,3]
[310046965,1704297132423,-28016.97809111,0.00036,14]
[310046966,1704297132433,-500.0,0.00036,15]
[310046967,1704297132443,-1000.0,0.00036,2]
[310046968,1704297132453,-5000.0,0.00036,10]
[310046969,1704297132463,-1000.0,0.00036,2]
[310046970,1704297132473,-655353.0,0.00036,2]
[310046971,1704297132484,-2000.0,0.00036,2]
[310046972,1704297132495,-150.0,0.00036029,7]
[310046973,1704297132505,-150.0,0.00036029,7]
[310046974,1704297132515,-212.0,0.0003604,2]
[310046975,1704297132525,-204.0,0.0003604,2]
[310046976,1704297132535,-57110.05282124,0.00036089,2]
[310046977,1704297132546,-57110.05282123,0.00036089,2]
[310046978,1704297132557,-57110.05282123,0.00036089,2]
[310046979,1704297132568,-57110.05282123,0.00036089,2]
[310046980,1704297132578,-57110.05282123,0.00036089,2]
[310046981,1704297132589,-57110.05282123,0.00036089,2]
[310046982,1704297132599,-57110.05282123,0.00036089,2]
[310046983,1704297132610,-57110.05282123,0.00036089,2]
[310046984,1704297132622,-57110.05282123,0.00036089,2]
[310046985,1704297132632,-57110.05282123,0.00036089,2]
[310046986,1704297132642,-302.46246,0.00036098,4]
[310046987,1704297132653,-39822.34,0.000361,7]
[310046988,1704297132664,-1000.0,0.0003611,10]
[310046989,1704297132846,-1000.0,0.0003611,10]
[310046990,1704297132856,-1000.0,0.0003611,10]
[310046991,1704297132866,-1000.0,0.0003611,10]
[310046992,1704297132876,-1000.0,0.0003611,10]
[310046993,1704297132886,-1000.0,0.0003611,10]
[310046994,1704297132895,-1000.0,0.0003611,10]
[310046995,1704297132905,-1000.0,0.0003611,10]
[310046996,1704297132914,-1000.0,0.0003611,10]
[310046997,1704297132924,-1000.0,0.0003611,10]
[310046998,1704297132934,-1000.0,0.0003611,10]
[310046999,1704297132944,-1000.0,0.0003611,10]
[310047000,1704297132954,-1000.0,0.0003611,10]
[310047001,1704297132965,-1000.0,0.0003611,10]
[310047002,1704297132974,-1000.0,0.0003611,10]
[310047003,1704297132984,-500.0,0.0003612,10]
[310047004,1704297132993,-151.23123,0.00036198,4]
[310047005,1704297133003,-276.3364,0.00036209,2]
[310047006,1704297133012,-407.06,0.00036292,2]
[310047007,1704297133021,-150.0,0.00036292,2]
[310047008,1704297133030,-150.0,0.00036292,2]
[310047009,1704297133040,-150.0,0.00036292,2]
[310047010,1704297133050,-150.0,0.00036292,2]
[310047011,1704297133059,-150.0,0.00036292,2]
[310047012,1704297133069,-150.0,0.00036292,2]
[310047013,1704297133078,-150.0,0.00036292,2]
[310047014,1704297133087,-150.0,0.00036292,2]
[310047015,1704297133097,-416.87,0.00036292,2]
[310047016,1704297133106,-313.44,0.00036292,2]
[310047017,1704297133115,-150.0,0.00036292,2]
[310047018,1704297133125,-150.0,0.00036292,2]
[310047019,1704297133134,-158.02,0.00036292,2]
[310047020,1704297133144,-313.44,0.00036292,2]
[310047021,1704297133153,-416.87,0.00036292,2]
[310047022,1704297133162,-313.44,0.00036292,2]
[310047023,1704297133172,-416.87,0.00036292,2]
[310047024,1704297133181,-150.0,0.00036292,2]
[310047025,1704297133191,-313.44,0.00036292,2]
[310047026,1704297133201,-416.87,0.00036292,2]
[310047027,1704297133211,-313.44,0.00036292,2]
[310047028,1704297133221,-416.87,0.00036292,2]
[310047029,1704297133231,-416.87,0.00036292,2]
[310047030,1704297133241,-150.0,0.00036292,2]
[310047031,1704297133251,-313.44,0.00036292,2]
[310047032,1704297133261,-313.44,0.00036292,2]
[310047033,1704297133271,-416.87,0.00036292,2]
[310047034,1704297133281,-169.93,0.00036292,2]
[310047035,1704297133291,-164.82,0.00036292,2]
[310047036,1704297133300,-169.18,0.00036292,2]
[310047037,1704297133309,-150.8337322,0.00036296,2]
[310047038,1704297133319,-302.46246,0.00036298,4]
[310047039,1704297133328,-716.0,0.000363,25]
[310047040,1704297133337,-39822.34,0.000363,7]
[310047041,1704297133348,-150.0,0.00036314,7]
[310047042,1704297133359,-317.84,0.00036315,2]
[310047043,1704297133369,-5643.0,0.00036325,30]
[310047044,1704297133378,-5643.0,0.00036325,60]
[310047045,1704297133387,-150.0,0.00036363,2]
[310047046,1704297133397,-150.0,0.00036363,2]
[310047047,1704297133408,-173.0,0.0003638,42]
[310047048,1704297133418,-151.23123,0.00036398,4]
[310047049,1704297133428,-17395.0,0.000364,3]
[310047050,1704297133437,-151.74559818,0.00036429,30]
[310047051,1704297133447,-892.37836567,0.00036438,2]
[310047052,1704297133456,-152.21,0.00036438,2]
[310047053,1704297133466,-152.21,0.00036438,31]
[310047054,1704297133476,-152.21,0.00036438,60]
[310047055,1704297133485,-152.21,0.00036438,89]
[310047056,1704297133495,-1000.0,0.00036438,120]
[310047057,1704297133504,-9694.04339314,0.0003644,2]
[310047058,1704297133513,-1095.0,0.00036463,7]
[310047059,1704297133524,-2009.6,0.0003648,2]
[310047060,1704297133533,-4788.62199203,0.0003649,10]
[310047061,1704297133542,-3000.0,0.00036498,11]
[310047062,1704297133552,-151.23123,0.00036498,4]
[310047063,1704297133562,-62605.19019212,0.000365,2]
[310047064,1704297133571,-22133.98535312,0.000365,7]
[310047065,1704297133581,-39822.34,0.000365,7]
[310047066,1704297133591,-436.76,0.00036508,2]
[310047067,1704297133600,-150.0,0.00036551,7]
[310047068,1704297133610,-150.0,0.00036551,7]
[310047069,1704297133620,-150.0,0.00036551,7]
[310047070,1704297133630,-150.0,0.00036551,7]
[310047071,1704297133639,-150.0,0.00036551,7]
[310047072,1704297133648,-150.0,0.00036554,2]
[310047073,1704297133658,-212.0,0.0003661,2]
[310047074,1704297133667,-204.0,0.0003661,2]
[310047075,1704297133677,-1004.15,0.00036613,15]
[310047076,1704297133686,-276.3364,0.00036645,2]
[310047077,1704297133695,-150.0,0.00036652,120]
[310047078,1704297133705,-500.0,0.00036668,10]
[310047079,1704297133714,-500.0,0.00036668,7]
[310047080,1704297133724,-500.0,0.00036668,7]
[310047081,1704297133734,-150.0,0.0003667,7]
[310047082,1704297133744,-151.23123,0.00036698,4]
[310047083,1704297133753,-151.0,0.000367,2]
[310047084,1704297133763,-1000.0,0.000367,2]
[310047085,1704297133772,-157.25,0.000367,3]
[310047086,1704297133782,-157.25,0.000367,3]
[310047087,1704297133792,-157.25,0.000367,3]
[310047088,1704297133801,-157.25,0.000367,3]
[310047089,1704297133811,-157.25,0.000367,3]
[310047090,1704297133820,-157.25,0.000367,3]
[310047091,1704297133835,-157.25,0.000367,3]
[310047092,1704297133844,-157.25,0.000367,3]
[310047093,1704297133854,-157.25,0.000367,3]
[310047094,1704297133864,-157.25,0.000367,3]
[310047095,1704297133880,-157.25,0.000367,3]
[310047096,1704297133889,-157.25,0.000367,3]
[310047097,1704297133900,-150.8337322,0.00036785,2]
[310047098,1704297133910,-302.46246,0.00036798,4]
[310047099,1704297133920,-205.0,0.00036799,15]
[310047100,1704297133929,-17395.0,0.000368,5]
[310047101,1704297133938,-716.0,0.000368,26]
[310047102,1704297133949,-150.0,0.00036812,7]
[310047103,1704297133959,-150.0,0.00036812,7]
[310047104,1704297133968,-317.84,0.00036815,2]
[310047105,1704297133977,-153.84,0.00036863,2]
[310047106,1704297133986,-167.4,0.00036877,2]
[310047107,1704297133996,-302.46246,0.00036898,4]
[310047108,1704297134005,-27588.39895398,0.000369,7]
[310047109,1704297134014,-14373.77418324,0.000369,2]
[310047110,1704297134024,-1062.8886802,0.000369,2]
[310047111,1704297134034,-1812.6500698,0.000369,2]
[310047112,1704297134044,-1812.6500698,0.000369,2]
[310047113,1704297134054,-150.0,0.00036901,120]
[310047114,1704297134063,-152.0,0.00036955,7]
[310047115,1704297134073,-150.0,0.00036967,120]
[310047116,1704297134086,-2009.6,0.0003698,2]
[310047117,1704297134096,-300.0,0.00036987,18]
[310047118,1704297134105,-100000.0,0.00037,7]
[310047119,1704297134115,-311.32544221,0.00037,4]
[310047120,1704297134125,-2265.0,0.00037,7]
[310047121,1704297134135,-156280.09151518,0.00037,2]
[310047122,1704297134145,-300.0,0.00037,38]
[310047123,1704297134155,-250.0,0.00037,120]
[310047124,1704297134165,-2000.0,0.00037,2]
[310047125,1704297134175,-999.0,0.00037,9]
[310047126,1704297134186,-2090.63262278,0.00037,14]
[310047127,1704297134196,-666.38704421,0.00037,7]
[310047128,1704297134205,-2029.0,0.00037,30]
[310047129,1704297134215,-3017.25344812,0.00037,2]
[310047130,1704297134224,-1359.03759244,0.00037,20]
[310047131,1704297134234,-25090.78127913,0.00037,5]
[310047132,1704297134243,-159.54720674,0.00037,2]
[310047133,1704297134252,-110461.34,0.00037,7]
[310047134,1704297134261,-150.0,0.00037,30]
[310047135,1704297134270,-64160.23,0.00037,7]
[310047136,1704297134280,-8000.81201498,0.00037,2]
[310047137,1704297134290,-422.48,0.00037,15]
[310047138,1704297134299,-1000.0,0.00037,2]
[310047139,1704297134308,-5000.0,0.00037,10]
[310047141,1704297134318,-1000.0,0.00037,2]
[310047142,1704297134327,-6869.71117335,0.00037,2]
[310047143,1704297134337,-120154.03,0.00037,7]
[310047144,1704297134346,-942.92459113,0.00037,2]
[310047145,1704297134355,-2000.0,0.00037,2]
[310047146,1704297134365,-3000.0,0.00037,2]
[310047147,1704297134375,-8000.0,0.00037,2]
[310047148,1704297134385,-1500.0,0.00037,3]
[310047149,1704297134394,-150.0,0.00037001,120]
[310047150,1704297134405,-539.72,0.00037003,2]
[310047151,1704297134415,-150.0,0.00037026,7]
[310047152,1704297134425,-166.99,0.00037053,2]
[310047153,1704297134434,-313.44,0.00037143,2]
[310047154,1704297134444,-830.36,0.00037171,2]
[310047155,1704297134453,-212.0,0.0003718,2]
[310047156,1704297134462,-204.0,0.0003718,2]
[310047157,1704297134472,-150.0,0.000372,30]
[310047158,1704297134481,-150.0,0.00037204,7]
[310047159,1704297134490,-500.0,0.00037216,10]
[310047160,1704297134500,-162.122429,0.00037255,2]
[310047161,1704297134509,-162.12243,0.00037255,2]
[310047162,1704297134519,-246.504973,0.00037255,2]
[310047163,1704297134528,-2460.184103,0.00037255,2]
[310047164,1704297134538,-376.936734,0.00037255,2]
[310047165,1704297134548,-212.736914,0.00037255,2]
[310047166,1704297134557,-761.925643,0.00037255,2]
[310047167,1704297134566,-153.20279,0.00037255,2]
[310047168,1704297134577,-901.93696654,0.00037271,9]
[310047169,1704297134587,-901.9369665,0.00037271,9]
[310047170,1704297134597,-901.9369665,0.00037271,9]
[310047171,1704297134606,-150.8337322,0.00037273,2]
[310047172,1704297134616,-716.0,0.000373,26]
[310047173,1704297134627,-150.24865546,0.00037325,30]
[310047174,1704297134636,-258.0,0.00037369,2]
[310047175,1704297134646,-150.0,0.00037382,7]
[310047176,1704297134655,-150.0,0.000374,30]
[310047177,1704297134666,-1067.8821708,0.000374,12]
[310047178,1704297134677,-151.74559818,0.00037429,30]
[310047179,1704297134687,-151.0,0.0003743,2]
[310047180,1704297134698,-250.49088,0.0003743,2]
[310047181,1704297134707,-901.9369665,0.00037447,9]
[310047182,1704297134716,-436.76,0.00037486,2]
[310047183,1704297134726,-150.0,0.00037491,2]
[310047184,1704297134735,-2052.14956496,0.000375,3]
[310047185,1704297134746,-151.0,0.000375,2]
[310047186,1704297134755,-937.85,0.00037571,2]
[310047187,1704297134764,-4013.27416935,0.0003759,2]
[310047188,1704297134773,-4084.46997,0.00037596,30]
[310047189,1704297134784,-150.0,0.00037596,7]
[310047190,1704297134794,-150.0,0.00037596,7]
[310047191,1704297134804,-150.0,0.000376,30]
[310047192,1704297134814,-150.0,0.00037619,120]
[310047193,1704297134824,-171.99868358,0.0003764,4]
[310047194,1704297134837,-1234.0,0.0003771,2]
[310047195,1704297134847,-318.0,0.0003771,2]
[310047196,1704297134857,-2696.105,0.0003771,2]
[310047197,1704297134867,-2265.0,0.0003771,2]
[310047198,1704297134877,-150.0,0.0003771,2]
[310047199,1704297134886,-1026.0,0.0003771,2]
[310047200,1704297134896,-2460.184103,0.00037721,2]
[310047201,1704297134905,-376.936734,0.00037721,2]
[310047202,1704297134915,-212.736914,0.00037721,2]
[310047203,1704297134924,-761.925643,0.00037721,2]
[310047204,1704297134934,-3052.21879715,0.00037726,30]
[310047205,1704297134943,-317.84,0.0003773,2]
[310047206,1704297134953,-150.0,0.00037738,7]
[310047207,1704297134963,-212.0,0.0003774,2]
[310047208,1704297134973,-204.0,0.0003774,2]
[310047209,1704297134984,-368.61634352,0.00037751,10]
[310047210,1704297134994,-611.94022146,0.00037751,10]
[310047211,1704297135003,-633.83780531,0.00037751,10]
[310047212,1704297135013,-476.17422718,0.00037751,10]
[310047213,1704297135023,-231.83884085,0.00037751,10]
[310047214,1704297135033,-202.60389411,0.00037751,10]
[310047215,1704297135043,-209.20940062,0.00037751,10]
[310047216,1704297135052,-1000.0,0.00037751,10]
[310047217,1704297135063,-1949.83963265,0.00037751,10]
[310047218,1704297135072,-189.73904495,0.00037751,10]
[310047219,1704297135082,-1000.0,0.00037751,10]
[310047220,1704297135092,-177.56681102,0.00037751,10]
[310047221,1704297135102,-1040.93195179,0.00037751,10]
[310047222,1704297135111,-1000.0,0.00037751,10]
[310047223,1704297135120,-213.06310502,0.00037751,10]
[310047224,1704297135130,-1495.44211089,0.00037751,10]
[310047225,1704297135139,-1675.43568025,0.00037751,10]
[310047226,1704297135148,-665.0149031,0.00037751,10]
[310047227,1704297135157,-176.96177617,0.00037751,10]
[310047228,1704297135166,-1814.07577739,0.00037751,10]
[310047229,1704297135175,-167.48837984,0.00037751,10]
[310047230,1704297135185,-1000.0,0.00037751,10]
[310047231,1704297135194,-1487.48930584,0.00037751,10]
[310047232,1704297135203,-777.53357529,0.00037751,10]
[310047233,1704297135213,-570.44897632,0.00037751,10]
[310047234,1704297135223,-1542.37899258,0.00037751,10]
[310047235,1704297135232,-606.3232117,0.00037751,10]
[310047236,1704297135241,-531.50953528,0.00037751,10]
[310047237,1704297135250,-193.69373183,0.00037751,10]
[310047238,1704297135260,-465.62976463,0.00037751,10]
[310047239,1704297135269,-1000.0,0.00037751,10]
[310047240,1704297135279,-150.8337322,0.00037762,2]
[310047241,1704297135289,-500.0,0.00037764,10]
[310047242,1704297135298,-500.0,0.00037764,7]
[310047243,1704297135306,-500.0,0.00037764,7]
[310047244,1704297135316,-274.68684572,0.0003777,119]
[310047245,1704297135327,-153.84,0.00037784,2]
[310047246,1704297135336,-150.0,0.000378,30]
[310047247,1704297135345,-32791.5406945,0.000378,2]
[310047248,1704297135354,-716.0,0.000378,27]
[310047249,1704297135364,-10808.05,0.00037808,2]
[310047250,1704297135376,-10000.0,0.00037808,2]
[310047251,1704297135384,-4000.0,0.00037834,30]
[310047252,1704297135394,-150.0,0.00037857,7]
[310047253,1704297135406,-150.0,0.00037857,7]
[310047254,1704297135417,-150.0,0.00037857,7]
[310047255,1704297135428,-150.0,0.00037857,7]
[310047256,1704297135438,-150.0,0.00037857,7]
[310047257,1704297135448,-507.2,0.00037868,2]
[310047258,1704297135459,-376095.50603885,0.000379,2]
[310047259,1704297137503,-473.40238774,0.00032876,2]
[310047260,1704297137516,-26.59761226,0.00032876,2]
[310047261,1704297137526,-258.78841014,0.00032876,2]
[310047262,1704297137537,-311.01636313,0.00032876,2]
[310047263,1704297137547,-1596.49735582,0.000379,2]
[310047264,1704297138099,-504.94,0.00032876,2]
[310047265,1704297138108,-1292.63,0.00032876,2]
[310047266,1704297138118,-100.36138248,0.00032876,2]
[310047267,1704297138158,-2549.88,0.00032876,2]
[310047268,1704297138169,-1412.18415497,0.00032876,2]
[310047269,1704297138182,-359.87754254,0.00032876,2]
[310047270,1704297138194,-1537.55050091,0.00032876,2]
[310047271,1704297138562,-730.24297491,0.00032044,4]
[310047272,1704297138644,-2112.57273789,0.00032044,4]
[310047273,1704297138654,-1055.70484701,0.00032384,2]
[310047274,1704297138664,-4109.16590481,0.00032678,3]
[310047275,1704297138689,-440.68160619,0.00032678,3]
[310047276,1704297141764,99627.22763156,0.00023,2]
[310047280,1704297221753,1014.0951,0.0002313,2]
[310047283,1704297253110,1499.999999,0.0002,2]
[310047320,1704297500775,174.73,0.00024326,2]
[310047329,1704297675327,158.0,0.000245,2]
[310047364,1704297917987,-732.48583642,0.00025,7]
[310047365,1704297918010,-324.73382901,0.00025,2]
[310047366,1704297918032,-324.73382901,0.00025,2]
[310047367,1704297918054,-324.73382901,0.00025,2]
[310047501,1704298232227,-261.42380051,0.000264,2]
[310047502,1704298232238,-206.0,0.00026839,2]
[310047503,1704298232247,-407.65,0.00027338,2]
[310047504,1704298232260,-609.23347214,0.000274,2]
[310047505,1704298232270,-2048.18530229,0.00028153,28]
[310047506,1704298232281,-157.81069448,0.000288,2]
[310047507,1704298232292,-579.0304,0.000289,2]
[310047508,1704298232302,-16782.10820273,0.00028998,2]
[310047509,1704298232312,-2033.23336113,0.00029,2]
[310047510,1704298232322,-3883.17,0.00029185,2]
[310047511,1704298232332,-591.01,0.00029282,4]
[310047512,1704298232342,-499.99,0.00029282,2]
[310047513,1704298232352,-150.0,0.00029312,2]
[310047514,1704298232362,-197.46,0.00029329,2]
[310047515,1704298232371,-228.53,0.00029333,2]
[310047516,1704298232380,-250.0,0.00029381,2]
[310047517,1704298232390,-7773.21,0.00029479,2]
[310047518,1704298232400,-1164.0631765,0.00029479,6]
[310047519,1704298232409,-500.0,0.000295,2]
[310047520,1704298232419,-250.0,0.0002951,2]
[310047521,1704298232429,-407.65,0.00029601,2]
[310047522,1704298232440,-206.0,0.00029602,6]
[310047523,1704298232448,-162.94,0.0002962,2]
[310047524,1704298232457,-418.39942505,0.00029757,2]
[310047525,1704298232466,-157.81069447,0.0002985,2]
[310047526,1704298232476,-998.74,0.0002999,10]
[310047527,1704298232485,-832.28,0.0002999,10]
[310047528,1704298232494,-693.57,0.0002999,10]
[310047529,1704298232504,-50000.0,0.0003,2]
[310047530,1704298232513,-7299.27081094,0.0003,2]
[310047531,1704298232522,-351.28,0.0003,2]
[310047532,1704298232531,-255.78,0.0003,7]
[310047533,1704298232541,-72637.06777505,0.0003,4]
[310047534,1704298232550,-155.0,0.0003,2]
[310047535,1704298232561,-156.4985551,0.0003,20]
[310047536,1704298232570,-400.0,0.0003,2]
[310047537,1704298232580,-1000.0,0.00030127,2]
[310047538,1704298232590,-255.78,0.00030137,7]
[310047539,1704298232600,-168.59,0.00030264,120]
[310047540,1704298232610,-255.78,0.00030274,7]
[310047541,1704298232619,-197.46,0.00030307,2]
[310047542,1704298232628,-2255.0,0.00030382,2]
[310047543,1704298232638,-255.78,0.00030411,7]
[310047544,1704298232647,-255.78,0.00030548,7]
[310047545,1704298232657,-509.86,0.00030685,7]
[310047546,1704298232667,-194.40921135,0.00030687,4]
[310047547,1704298232676,-280.14979655,0.00030687,4]
[310047548,1704298232689,-170.80181031,0.00030701,4]
[310047549,1704298232700,-2741.15565318,0.00030899,14]
[310047550,1704298232710,-860.27196242,0.00030899,2]
[310047551,1704298232720,-274.18470334,0.00030899,2]
[310047552,1704298232729,-191.96207289,0.00030899,2]
[310047553,1704298232739,-2861.60326126,0.00030899,2]
[310047554,1704298232749,-680.82407148,0.00030899,2]
[310047555,1704298232759,-157.81069447,0.000309,2]
[310047556,1704298232768,-186.2973999,0.00030989,2]
[310047557,1704298232778,-168.49944395,0.00030996,2]
[310047558,1704298232787,-413.86036328,0.00030997,4]
[310047559,1704298232797,-1601.34707897,0.00030997,4]
[310047560,1704298232807,-405.04796106,0.00030997,4]
[310047561,1704298232817,-199.42827451,0.00030997,2]
[310047562,1704298232827,-166.50987138,0.00030997,4]
[310047563,1704298232837,-155.75489999,0.00030997,4]
[310047564,1704298232847,-1697.91618334,0.00030997,4]
[310047565,1704298232856,-593.99271562,0.00030997,4]
[310047566,1704298232866,-377.25948834,0.00030997,4]
[310047567,1704298232876,-190.5072284,0.00030997,2]
[310047568,1704298232885,-5920.49097553,0.00030997,4]
[310047569,1704298232894,-923.44804956,0.00030997,10]
[310047570,1704298232906,-156.25125464,0.00030997,4]
[310047571,1704298232916,-2293.81245087,0.00030998,4]
[310047572,1704298232926,-15501.43704461,0.00030999,2]
[310047573,1704298232941,-4496.68891084,0.00030999,2]